bitfinex-derivatives/quotes_ETHF0:USTF0_20241105
["timestamp","ask_amount","ask_price","bid_price","bid_amount"]
[1730834322274,2.78588338,2448.9,2448.7,0.40838]
[1730834322486,0.40838,2448.8,2448.7,0.40838]
[1730834322679,0.7527,2448.8,2448.7,0.40838]
[1730834322881,2.34752338,2448.8,2448.7,0.40838]
[1730834323284,2.75590338,2448.8,2448.7,0.40838]
[1730834323472,1.16108,2448.8,2448.7,0.40838]
[1730834323677,0.7527,2448.8,2448.7,0.40838]
[1730834324077,2.34752338,2448.8,2448.7,0.40838]
[1730834324383,2.34752338,2448.8,2448.7,0.4084]
[1730834325487,0.7527,2448.8,2448.7,0.4084]
[1730834326078,1.16108,2448.8,2448.7,0.4084]
[1730834326280,0.7527,2448.8,2448.3,1.344]
[1730834326480,0.4084,2448.7,2448.5,0.40842]
[1730834326684,1.20381,2448.6,2448.5,0.40842]
[1730834327571,0.7954,2448.6,2448.5,0.40842]
[1730834328481,0.7954,2448.6,2448.3,1.344]
[1730834328681,1.20382,2448.6,2448.5,0.40843]
[1730834329184,4.0032,2448.6,2448.5,0.40843]
[1730834330185,4.0032,2448.6,2448.2,2.1087]
[1730834330486,4.41162,2448.6,2448.5,0.40843]
[1730834330678,4.0032,2448.6,2448.5,0.40843]
[1730834333187,0.7954,2448.6,2448.5,0.40843]
[1730834333388,1.20381,2448.6,2448.5,0.40843]
[1730834334277,1.20381,2448.6,2448.2,2.1087]
[1730834334278,4.0032,2448.6,2448.2,0.7647]
[1730834334477,4.0032,2448.6,2448.3,0.40846]
[1730834334478,0.40845,2448.4,2448.3,0.40846]
[1730834335781,1.18315,2448.4,2448.3,0.40846]
[1730834336486,0.7747,2448.4,2448.3,0.40846]
[1730834336684,1.18315,2448.4,2448.3,0.40846]
[1730834337083,0.7747,2448.4,2448.3,0.40846]
[1730834337388,1.18315,2448.4,2448.3,0.40846]
[1730834337979,0.7747,2448.4,2448.3,0.40846]
[1730834340588,1.18315,2448.4,2448.3,0.40846]
[1730834341182,3.9825,2448.4,2448.3,0.40846]
[1730834342577,3.2078,2448.4,2448.3,0.40846]
[1730834342987,0.7954,2448.6,2448.1,0.7492]
[1730834343286,0.7954,2448.6,2448.5,0.40843]
[1730834343689,0.7954,2448.6,2448.4,0.40844]
[1730834343885,0.7954,2448.6,2448.1,0.7492]
[1730834344084,0.7954,2448.6,2448.5,0.40843]
[1730834344879,1.2347,2448.8,2448.5,4.084]
[1730834345092,1.2347,2448.8,2448.7,0.4084]
[1730834345683,40.8,2448.9,2448.8,0.40838]
[1730834345987,40.8,2448.9,2448.4,5.00852352]
[1730834345988,4.7795,2449.0,2448.9,0.40836]
[1730834346192,4.7795,2449.0,2448.5,0.8091]
[1730834346393,5.18785,2449.0,2448.5,0.8091]
[1730834346693,4.7795,2449.0,2448.8,0.40838]
[1730834346890,4.7795,2449.0,2448.9,0.40836]
[1730834347287,45.5795,2449.0,2448.9,0.40836]
[1730834347794,45.5795,2449.0,2448.8,0.40837]
[1730834347985,45.5795,2449.0,2448.5,0.8091]
[1730834348182,46.0284,2449.0,2448.8,0.40837]
[1730834348898,42.8206,2449.0,2448.8,0.40837]
[1730834349092,46.0284,2449.0,2448.8,0.40837]
[1730834349798,46.43675,2449.0,2448.8,0.40837]
[1730834350089,46.0284,2449.0,2448.8,0.40837]
[1730834350798,4.0832,2448.9,2448.5,0.40843]
[1730834350993,0.40841,2448.6,2448.4,0.40844]
[1730834351191,2.0063,2448.5,2448.3,0.4662]
[1730834351388,2.41473,2448.5,2448.3,0.87465]
[1730834351691,2.0063,2448.5,2448.4,0.40845]
[1730834354195,6.0903,2448.5,2448.2,0.40847]
[1730834354395,6.0903,2448.5,2448.1,0.40849]
[1730834354396,0.40848,2448.2,2448.1,0.40849]
[1730834354712,0.40848,2448.2,2448.0,0.4512]
[1730834354713,0.40848,2448.2,2448.0,0.8597]
[1730834355001,0.4577,2448.1,2448.0,0.8597]
[1730834357313,0.4577,2448.1,2448.0,0.4512]
[1730834357314,0.8662,2448.1,2448.0,0.4512]
[1730834357616,0.8662,2448.1,2447.8,0.7458]
[1730834357617,0.40851,2448.0,2447.8,0.40854]
[1730834357820,1.98201,2448.0,2447.8,0.4391]
[1730834358019,1.98201,2448.0,2447.9,0.40853]
[1730834359219,1.5735,2448.0,2447.8,0.4391]
[1730834359424,1.98202,2448.0,2447.8,0.84763]
[1730834359617,1.5735,2448.0,2447.9,0.40853]
[1730834360315,1.5735,2448.0,2447.8,0.4391]
[1730834360518,4.0848,2447.9,2447.5,1.06916579]
[1730834360716,4.0848,2447.9,2447.6,0.40856]
[1730834360717,3.2078,2447.7,2447.6,0.40856]
[1730834360920,45.60262338,2447.7,2447.6,0.40856]
[1730834361117,46.05242338,2447.7,2447.6,0.40856]
[1730834361316,44.4576,2447.7,2447.6,0.40856]
[1730834363324,3.6576,2447.7,2447.6,0.40856]
[1730834363621,3.6576,2447.7,2447.2,7.86623352]
[1730834363818,3.6576,2447.7,2447.2,6.84463352]
[1730834364123,5.66100338,2447.7,2447.4,0.40861]
[1730834364317,5.66098338,2447.7,2447.5,0.40859]
[1730834365023,3.2078,2447.7,2447.6,0.40858]
[1730834365224,1.59482338,2447.9,2447.8,0.40855]
[1730834366018,2.00335338,2447.9,2447.7,0.40855]
[1730834366421,3.9808,2447.8,2447.6,0.86347]
[1730834366721,5.57562338,2447.8,2447.1,5.74896579]
[1730834366924,1.59482338,2447.6,2447.5,0.40859]
[1730834367127,2.00340338,2447.6,2447.4,0.4086]
[1730834367422,0.4408,2447.5,2447.4,0.40861]
[1730834368723,2.05292338,2447.7,2447.6,0.40858]
[1730834368724,0.4581,2447.7,2447.6,0.40858]
[1730834368922,2.80862338,2447.8,2447.7,0.40856]
[1730834369225,6.01642338,2447.8,2447.7,0.40856]
[1730834371927,4.4216,2447.8,2447.7,0.40856]
[1730834372124,6.01642338,2447.8,2447.7,0.40856]
[1730834372320,4.4216,2447.8,2447.7,0.40856]
[1730834372716,1.2138,2447.8,2447.7,0.40856]
[1730834373522,3.21717338,2447.8,2447.6,0.40857]
[1730834373723,3.21717338,2447.8,2447.6,0.40858]
[1730834373928,3.21717338,2447.8,2447.5,0.40858]
[1730834374530,2.80862338,2447.8,2447.3,0.4603]
[1730834374928,0.40857,2447.7,2447.5,0.40859]
[1730834375229,1.2138,2447.8,2447.7,0.40856]
[1730834375426,1.2138,2447.8,2447.3,1.48186]
[1730834375821,1.2138,2447.8,2447.7,0.40856]
[1730834376136,2.80862338,2447.8,2447.4,0.4086]
[1730834376321,0.40857,2447.7,2447.5,0.40859]
[1730834376522,2.80862338,2447.8,2447.3,0.4603]
[1730834376729,0.4699,2447.6,2447.5,0.4086]
[1730834377425,0.87849,2447.6,2447.4,0.4086]
[1730834377621,0.87849,2447.6,2447.3,0.4603]
[1730834377827,0.87849,2447.6,2447.5,0.4086]
[1730834378328,0.87849,2447.6,2447.3,0.4603]
[1730834378524,0.4699,2447.6,2447.3,0.4603]
[1730834378726,3.61641,2447.4,2447.3,0.4603]
[1730834378925,3.61641,2447.4,2447.3,0.40863]
[1730834379126,3.2078,2447.4,2447.3,0.40863]
[1730834379528,4.0918,2447.4,2447.3,0.40863]
[1730834379732,4.50041,2447.4,2447.3,0.40863]
[1730834380134,4.0918,2447.4,2447.3,0.40863]
[1730834380433,1.29261,2447.4,2447.3,0.40863]
[1730834380736,4.50041,2447.4,2447.3,0.40863]
[1730834381328,4.0918,2447.4,2447.3,0.40863]
[1730834383635,0.884,2447.4,2447.3,0.40863]
[1730834383941,4.0918,2447.4,2447.3,0.40863]
[1730834385637,3.6541,2447.4,2447.3,0.40863]
[1730834385934,0.4463,2447.4,2447.0,3.2078]
[1730834386137,6.39103352,2447.2,2446.6,0.095]
[1730834386335,6.39103352,2447.2,2446.8,0.4087]
[1730834386336,3.2078,2446.9,2446.8,0.4087]
[1730834386542,44.0078,2446.9,2446.8,0.4087]
[1730834387537,0.4518,2447.1,2447.0,0.40868]
[1730834388830,41.2463,2447.4,2447.3,0.40863]
[1730834389038,41.7144,2447.4,2447.3,0.40863]
[1730834389333,0.9144,2447.4,2447.3,0.40863]
[1730834389745,41.2681,2447.4,2447.3,0.40863]
[1730834390240,40.8,2447.4,2447.3,0.40863]
[1730834392448,3.2078,2447.5,2447.4,0.40861]
[1730834393633,40.8,2447.6,2447.4,4.0856]
[1730834393946,40.8,2447.6,2447.5,0.8637]
[1730834394143,40.8,2447.6,2447.5,0.4086]
[1730834394650,0.4417,2447.7,2447.5,0.4086]
[1730834395134,41.2417,2447.7,2447.5,0.4086]
[1730834395544,41.2417,2447.7,2447.6,0.40858]
[1730834396938,41.2417,2447.7,2447.5,0.40859]
[1730834396939,41.65027,2447.7,2447.5,0.40859]
[1730834397449,2.44509338,2447.7,2447.4,0.4086]
[1730834397640,2.44508338,2447.7,2447.5,0.40859]
[1730834397846,2.44508338,2447.7,2447.1,3.6635]
[1730834397847,0.40859,2447.6,2447.1,3.2078]
[1730834398043,0.40861,2447.4,2447.2,0.40864]
[1730834398341,0.465,2447.3,2447.2,0.40864]
[1730834398735,4.5514,2447.3,2447.0,0.4742]
[1730834399045,2.05982338,2447.3,2447.0,0.4742]
[1730834399350,2.46846338,2447.3,2447.0,0.4742]
[1730834399544,2.46846338,2447.3,2447.1,0.40865]
[1730834399741,0.87364,2447.3,2447.1,0.40865]
[1730834400751,2.46864214,2447.3,2447.1,0.40865]
[1730834400938,0.40865,2447.2,2447.0,0.88287]
[1730834401139,0.87447,2447.1,2446.9,1.75168]
[1730834401348,0.87447,2447.1,2446.9,0.4087]
[1730834401349,1.59500214,2447.0,2446.9,0.4087]
[1730834403352,1.59457605,2447.0,2446.9,0.4087]
[1730834403643,1.59451878,2447.0,2446.9,0.4087]
[1730834404251,3.03596952,2447.1,2446.8,0.4694]
[1730834404448,4.80225946,2446.9,2446.8,0.8781]
[1730834404840,5.26545946,2446.9,2446.8,0.8781]
[1730834405847,2.05765946,2446.9,2446.8,0.8781]
[1730834408953,0.4632,2446.9,2446.8,0.8781]
[1730834412255,1.59445946,2447.0,2446.8,4.5566]
[1730834412561,5.33446952,2447.2,2447.1,0.40866]
[1730834412562,5.23825946,2447.2,2447.1,0.40866]
[1730834412860,3.6438,2447.2,2447.1,0.40866]
[1730834416559,3.2078,2447.2,2447.1,4.49506]
[1730834417261,3.2078,2447.2,2446.8,1.49117]
[1730834417262,6.39103352,2447.2,2446.8,0.4694]
[1730834417452,2.06261809,2447.1,2446.8,0.4694]
[1730834417651,2.52171809,2447.0,2446.6,3.2078]
[1730834417855,2.52171809,2447.0,2446.9,0.4087]
[1730834418159,2.52171809,2447.0,2446.8,0.40871]
[1730834418355,2.52171809,2447.0,2446.7,0.4511]
[1730834418661,2.52171809,2447.0,2446.7,0.85982]
[1730834418958,2.00121809,2446.9,2446.7,0.4511]
[1730834419155,1.59251809,2446.9,2446.7,0.4511]
[1730834419353,6.21055746,2446.8,2446.3,0.095]
[1730834419551,4.80018421,2446.4,2446.1,0.4642]
[1730834419857,40.8,2446.4,2446.3,0.4088]
[1730834420051,1.59238421,2446.7,2446.2,8.18183352]
[1730834420356,4.80018421,2446.4,2446.1,0.40882]
[1730834420553,40.8,2446.3,2446.2,0.4642]
[1730834420748,41.2303,2446.3,2446.2,0.4642]
[1730834420957,40.8,2446.3,2446.2,0.87301]
[1730834421152,2.03678421,2446.5,2446.3,0.4088]
[1730834421353,2.03678421,2446.5,2446.2,0.4642]
[1730834421559,2.03678421,2446.5,2446.4,0.40878]
[1730834421750,2.03678421,2446.5,2446.2,0.4642]
[1730834422165,40.8,2446.4,2446.2,0.4642]
[1730834422456,42.39238421,2446.4,2446.2,0.4642]
[1730834424459,42.39238421,2446.4,2445.8,5.25793938]
[1730834424460,42.39238421,2446.4,2446.0,0.40885]
[1730834424660,1.59238421,2446.3,2446.1,0.40882]
[1730834424852,0.9296,2446.2,2446.1,0.40882]
[1730834425253,0.9296,2446.2,2445.9,0.4341]
[1730834425562,0.9296,2446.2,2446.0,0.40883]
[1730834425757,0.4631,2446.1,2446.0,0.40883]
[1730834429263,5.20895421,2446.5,2446.0,4.088]
[1730834429264,4.80018421,2446.5,2446.0,4.088]
[1730834429451,1.3624,2446.4,2446.2,0.40881]
[1730834429656,1.3624,2446.4,2445.9,0.4341]
[1730834429657,1.3624,2446.4,2446.3,0.4088]
[1730834430252,3.2078,2446.5,2446.0,0.4465]
[1730834430457,3.2078,2446.5,2446.4,0.40878]
[1730834430968,3.2078,2446.5,2446.3,0.4088]
[1730834431164,1.3432,2446.4,2446.3,0.4088]
[1730834431369,1.3432,2446.4,2446.2,0.4088]
[1730834432265,1.75198,2446.4,2446.1,0.40882]
[1730834432768,1.75198,2446.4,2445.9,0.4341]
[1730834432769,1.3432,2446.4,2445.9,0.4341]
[1730834432964,1.3432,2446.4,2446.0,0.40885]
[1730834433163,1.3432,2446.4,2445.9,0.4341]
[1730834433470,0.4358,2446.4,2446.3,0.4088]
[1730834440272,0.4358,2446.4,2445.9,0.4341]
[1730834440273,3.6436,2446.4,2445.9,0.4341]
[1730834440469,0.40883,2446.1,2445.8,1.417]
[1730834440774,0.9079,2446.0,2445.9,0.40886]
[1730834441368,1.31675,2446.0,2445.7,4.05428]
[1730834441566,0.4653,2445.9,2445.7,4.05428]
[1730834441766,0.4653,2445.9,2445.8,0.40888]
[1730834442773,0.40894,2445.5,2445.2,0.205]
[1730834442977,0.4318,2445.4,2445.1,0.40899]
[1730834443273,40.8,2445.3,2444.8,3.2078]
[1730834443471,40.8,2445.3,2444.9,0.40903]
[1730834443472,41.20897,2445.3,2444.9,0.40903]
[1730834443979,41.20897,2445.3,2444.5,6.0841]
[1730834443980,3.2078,2445.1,2444.5,6.0841]
[1730834444272,3.2078,2445.1,2444.7,0.40905]
[1730834444472,3.61681,2445.1,2444.7,0.40906]
[1730834445169,6.39103352,2445.1,2444.4,0.898]
[1730834445579,3.2078,2445.1,2444.9,0.40902]
[1730834445774,0.4572,2445.2,2445.1,0.409]
[1730834446076,0.4572,2445.2,2444.8,3.2078]
[1730834446077,0.4572,2445.2,2445.0,0.40901]
[1730834446765,0.4572,2445.2,2445.1,0.409]
[1730834447770,3.6396,2445.4,2445.3,0.40896]
[1730834447771,3.2078,2445.4,2445.3,0.40896]
[1730834448378,10.48063352,2445.4,2444.6,0.095]
[1730834448574,3.2078,2445.1,2444.6,0.095]
[1730834448876,3.2078,2445.1,2445.0,0.40901]
[1730834449479,3.2078,2445.1,2444.9,0.40902]
[1730834450581,3.2078,2445.1,2444.8,0.40904]
[1730834450582,3.6168,2445.1,2444.8,0.40904]
[1730834450788,0.4288,2445.0,2444.8,0.40904]
[1730834451681,0.4288,2445.0,2444.9,0.40903]
[1730834451874,0.4288,2445.0,2444.8,0.40904]
[1730834452075,0.4288,2445.0,2444.7,0.9239]
[1730834452274,0.4288,2445.0,2444.8,0.40905]
[1730834452574,3.2078,2445.1,2444.7,0.9239]
[1730834452771,3.2078,2445.1,2445.0,0.40901]
[1730834455380,0.4702,2445.2,2444.7,0.9239]
[1730834455381,0.4702,2445.2,2445.1,0.409]
[1730834455780,4.5598,2445.2,2445.1,0.409]
[1730834455978,6.86603352,2445.3,2445.1,0.409]
[1730834455979,6.86603352,2445.3,2445.1,0.40899]
[1730834456175,6.86603352,2445.3,2444.7,0.9239]
[1730834456579,40.8,2445.2,2444.8,0.40904]
[1730834456782,0.40901,2445.1,2444.8,0.40904]
[1730834456980,0.40901,2445.1,2444.7,0.4617]
[1730834456981,3.18323352,2445.1,2444.7,0.4617]
[1730834457180,3.59224352,2445.1,2444.8,0.40904]
[1730834457879,6.80004352,2445.1,2444.8,0.40904]
[1730834458483,6.80004352,2445.1,2444.9,0.40903]
[1730834458880,0.4608,2445.0,2444.9,0.40903]
[1730834460376,0.4608,2445.0,2444.8,0.40904]
[1730834460581,0.4608,2445.0,2444.9,0.40903]
[1730834461378,0.4608,2445.0,2444.8,0.40903]
[1730834461688,0.4608,2445.0,2444.8,0.40904]
[1730834461991,0.4608,2445.0,2444.9,0.40903]
[1730834462986,0.86981,2445.0,2444.8,0.40904]
[1730834463186,0.4608,2445.0,2444.7,0.4617]
[1730834463391,0.4608,2445.0,2444.8,0.40905]
[1730834463392,0.86982,2445.0,2444.8,0.40905]
[1730834463692,0.4608,2445.0,2444.8,0.40905]
[1730834463894,0.86982,2445.0,2444.8,0.40904]
[1730834465294,0.4608,2445.0,2444.9,0.40903]
[1730834465991,0.86982,2445.0,2444.8,0.40904]
[1730834466295,0.4091,2444.5,2444.1,4.7898]
[1730834466494,3.2078,2444.7,2444.2,0.4737]
[1730834466688,3.2078,2444.7,2444.5,0.40909]
[1730834466689,3.61686,2444.7,2444.5,0.40909]
[1730834466994,3.61686,2444.7,2444.4,0.40911]
[1730834466995,0.40909,2444.6,2444.4,0.40911]
[1730834467189,4.09963352,2444.5,2444.0,0.40918]
[1730834467389,4.09963352,2444.5,2443.7,3.3028]
[1730834467390,0.40917,2444.1,2443.7,3.3028]
[1730834467588,0.40917,2444.1,2443.6,0.4442]
[1730834467589,0.4092,2443.9,2443.6,0.4442]
[1730834467796,3.59246352,2443.7,2443.2,0.61431]
[1730834467994,3.18323352,2443.4,2443.3,0.40928]
[1730834468293,43.98323352,2443.6,2443.1,3.652]
[1730834468695,40.8,2443.6,2443.1,3.652]
[1730834468894,3.61702,2443.8,2443.3,0.40929]
[1730834469198,3.61702,2443.8,2443.1,3.652]
[1730834469199,3.61702,2443.8,2443.2,0.40931]
[1730834469396,3.61702,2443.8,2443.1,0.4442]
[1730834469397,3.2078,2443.8,2443.1,0.4442]
[1730834469589,3.2078,2443.8,2443.4,0.40927]
[1730834469793,40.8,2443.7,2443.4,0.40927]
[1730834470192,40.8,2443.7,2443.1,0.4442]
[1730834470494,40.8,2443.7,2443.2,0.40931]
[1730834470495,3.18323352,2443.6,2443.2,0.40931]
[1730834470792,3.18323352,2443.6,2443.3,0.4093]
[1730834471294,3.18323352,2443.6,2443.3,0.40929]
[1730834471495,3.18323352,2443.6,2443.1,3.652]
[1730834471805,40.8,2443.7,2443.4,0.40928]
[1730834471990,40.8,2443.7,2443.1,3.652]
[1730834472195,6.39103352,2443.8,2443.7,0.40923]
[1730834472598,3.2078,2443.8,2443.7,0.40923]
[1730834472893,3.2078,2443.8,2443.6,0.40924]
[1730834473300,3.2078,2443.8,2443.1,3.652]
[1730834473691,3.2078,2443.8,2443.7,0.40923]
[1730834475502,3.2078,2443.8,2443.6,0.40924]
[1730834475702,6.39103352,2443.8,2443.1,5.124]
[1730834475898,3.18323352,2443.6,2443.1,3.652]
[1730834476094,3.18323352,2443.4,2442.9,0.095]
[1730834476405,3.18323352,2443.4,2442.7,3.2078]
[1730834476406,6.39103352,2443.1,2442.7,3.2078]
[1730834476592,0.4491,2443.0,2442.4,0.8937]
[1730834476812,3.59260352,2442.9,2442.5,0.40942]
[1730834477110,3.59260352,2442.9,2442.3,3.2078]
[1730834477111,3.2078,2442.8,2442.3,3.2078]
[1730834477295,0.4094,2442.7,2442.3,3.2078]
[1730834477604,4.0944,2442.7,2442.3,3.2078]
[1730834477802,3.18323352,2442.4,2442.3,3.2078]
[1730834478007,3.64413352,2442.6,2442.4,0.40943]
[1730834478219,40.8,2442.5,2442.0,3.2078]
[1730834478503,3.18323352,2442.4,2442.0,3.2078]
[1730834478709,3.2078,2442.2,2441.8,0.01029374]
[1730834479300,3.18323352,2442.4,2442.1,0.4095]
[1730834479702,3.18323352,2442.4,2442.0,0.40951]
[1730834480206,6.39103352,2442.2,2441.9,0.40952]
[1730834480401,3.2078,2442.2,2441.8,0.01029374]
[1730834480604,3.18323352,2442.4,2441.8,0.01029374]
[1730834480909,44.0078,2442.5,2442.3,0.40946]
[1730834481111,44.0078,2442.5,2442.4,0.40945]
[1730834481410,3.2078,2442.5,2442.4,0.40945]
[1730834481703,3.2078,2442.5,2442.1,0.4337]
[1730834481900,3.2078,2442.5,2442.4,0.40945]
[1730834483112,3.2078,2442.8,2442.6,0.40942]
[1730834483311,3.2078,2442.8,2442.5,0.40943]
[1730834483511,3.2078,2442.8,2442.1,0.5287]
[1730834483512,3.2078,2442.8,2442.1,0.4337]
[1730834483810,0.4094,2442.7,2442.3,0.40946]
[1730834484000,3.18323352,2442.6,2442.1,0.4337]
[1730834484205,3.18323352,2442.3,2441.8,0.10529374]
[1730834484403,3.18323352,2442.3,2441.8,0.01029374]
[1730834484608,3.18323352,2442.3,2442.1,0.40949]
[1730834485805,0.4408,2442.4,2442.3,0.40947]
[1730834486005,3.2078,2442.5,2442.4,0.40945]
[1730834486208,3.2078,2442.5,2441.9,3.6463]
[1730834486411,3.2078,2442.5,2442.4,0.40945]
[1730834489104,2.59347073,2442.5,2442.4,0.40945]
[1730834492617,5.77670425,2442.5,2442.0,1.8152]
[1730834493214,5.77670425,2442.5,2442.4,0.40945]
[1730834494118,3.18323352,2442.5,2442.4,0.40945]
[1730834494508,40.8,2443.1,2442.4,4.0944]
[1730834494711,3.2078,2443.3,2443.1,0.40933]
[1730834494908,4.0928,2443.2,2443.1,0.40933]
[1730834495108,3.2078,2443.3,2443.2,0.40931]
[1730834495109,48.1006,2443.3,2443.2,0.40931]
[1730834495313,44.0078,2443.3,2443.2,0.40931]
[1730834495515,48.1006,2443.3,2443.2,0.40931]
[1730834495712,40.8,2443.3,2443.2,0.40931]
[1730834495915,3.2078,2443.6,2443.1,3.2078]
[1730834496116,3.2078,2443.6,2443.5,0.40926]
[1730834496316,3.2078,2443.6,2443.4,0.40927]
[1730834496317,6.39103352,2443.6,2443.4,0.40927]
[1730834496518,40.8,2443.5,2443.4,0.40927]
[1730834497021,0.40931,2443.3,2442.9,0.40936]
[1730834497216,0.4538,2443.2,2442.6,1.46631]
[1730834497519,0.4538,2443.2,2443.0,0.40934]
[1730834498418,0.86312,2443.2,2442.8,0.40937]
[1730834498713,0.40934,2443.1,2442.8,0.40938]
[1730834499416,0.40937,2442.9,2442.7,0.4094]
[1730834499613,3.61715,2443.0,2442.7,0.40939]
[1730834499810,3.2078,2443.0,2442.9,0.40937]
[1730834500009,3.2078,2443.0,2442.8,0.40937]
[1730834500010,3.61715,2443.0,2442.8,0.40937]
[1730834500828,3.61715,2443.0,2442.5,0.4379]
[1730834500829,3.2078,2443.0,2442.5,0.4379]
[1730834501120,0.83917,2442.9,2442.6,0.4094]
[1730834501512,0.83917,2442.9,2442.5,0.4379]
[1730834501713,0.4298,2442.9,2442.5,0.4379]
[1730834501912,3.2078,2443.0,2442.5,0.4379]
[1730834502118,3.2078,2443.0,2442.9,0.40937]
[1730834502514,7.3014,2443.0,2442.9,0.40937]
[1730834503526,3.2078,2443.0,2442.9,0.40937]
[1730834503915,43.98323352,2443.5,2442.5,1.8519]
[1730834503916,3.2078,2443.3,2442.7,3.2078]
[1730834504117,3.2078,2443.3,2443.1,0.40932]
[1730834504518,3.2078,2443.3,2443.2,0.40931]
[1730834504931,0.40917,2444.1,2443.3,0.4093]
[1730834505225,0.4092,2443.9,2443.6,0.40924]
[1730834505413,41.2686,2444.0,2443.4,3.2078]
[1730834505621,6.39103352,2443.7,2442.9,0.205]
[1730834505923,0.4519,2443.8,2442.8,0.40938]
[1730834505924,0.40933,2443.2,2442.8,0.40938]
[1730834506132,0.4686,2443.1,2442.9,0.40935]
[1730834506620,0.4686,2443.1,2443.0,0.40935]
[1730834507023,3.2078,2443.4,2443.2,0.40931]
[1730834507519,3.2078,2443.4,2443.2,0.4093]
[1730834508830,3.2078,2443.4,2443.1,0.40932]
[1730834509024,3.61709,2443.4,2443.0,0.40934]
[1730834509230,3.2078,2443.4,2442.8,0.4422]
[1730834509721,3.2078,2443.4,2443.0,0.40934]
[1730834509722,3.61709,2443.4,2443.0,0.40934]
[1730834509930,0.40931,2443.3,2442.9,0.40936]
[1730834510122,0.40934,2443.1,2442.8,3.61718]
[1730834510328,0.4548,2443.2,2442.8,3.2078]
[1730834510633,0.40936,2443.0,2442.8,3.2078]
[1730834510835,0.40934,2443.1,2442.8,3.61718]
[1730834511127,0.4548,2443.2,2442.8,3.61718]
[1730834511333,0.87815,2443.0,2442.8,3.61718]
[1730834511928,0.87815,2443.0,2442.8,3.2078]
[1730834512329,0.87815,2443.0,2442.8,3.61718]
[1730834512629,0.87815,2443.0,2442.8,3.2078]
[1730834512937,40.8,2442.9,2442.8,3.61717]
[1730834514724,40.8,2442.9,2442.8,0.40937]
[1730834514925,40.8,2442.9,2442.7,0.40939]
[1730834515629,40.8,2442.9,2442.7,0.4094]
[1730834516129,40.8,2442.9,2442.8,0.40938]
[1730834518036,0.4499,2443.3,2442.8,0.40938]
[1730834518037,1.57662422,2443.7,2442.8,4.0936]
[1730834518227,0.4467,2443.5,2443.2,3.2078]
[1730834518425,0.4467,2443.5,2443.3,0.4093]
[1730834518730,0.4467,2443.5,2443.4,0.40928]
[1730834519324,40.8,2443.6,2443.5,0.40926]
[1730834520423,40.8,2443.6,2443.2,3.2078]
[1730834520828,0.40933,2443.2,2442.8,3.61717]
[1730834521024,3.2078,2443.4,2442.8,3.61717]
[1730834521025,0.85654,2443.1,2442.8,3.61717]
[1730834521228,1.32104,2443.1,2442.8,3.61717]
[1730834521428,0.40935,2443.0,2442.8,3.2078]
[1730834521636,0.40937,2442.9,2442.3,1.47110421]
[1730834521835,0.40942,2442.6,2442.2,3.61727]
[1730834522027,0.40943,2442.5,2442.2,3.2078]
[1730834522226,0.40943,2442.5,2442.2,3.61728]
[1730834522227,0.85963,2442.5,2442.2,3.61728]
[1730834522633,0.85963,2442.5,2441.9,5.03132]
[1730834522634,0.40946,2442.4,2441.9,5.03132]
[1730834522933,0.4502,2442.5,2442.1,0.40948]
[1730834523234,0.4502,2442.5,2442.0,0.40951]
[1730834523235,0.40946,2442.4,2442.0,0.40951]
[1730834523427,0.4502,2442.5,2442.2,0.40947]
[1730834523626,0.85965,2442.5,2442.0,0.40951]
[1730834523826,0.40947,2442.3,2441.9,3.61732]
[1730834524339,0.40947,2442.3,2441.9,3.2078]
[1730834524635,42.82472422,2442.4,2441.9,3.2078]
[1730834524838,41.2481,2442.4,2442.1,0.40949]
[1730834525034,41.2481,2442.4,2441.9,3.2078]
[1730834525337,41.65755,2442.4,2442.0,0.4095]
[1730834525730,41.65755,2442.4,2442.1,0.4095]
[1730834526435,42.82472422,2442.4,2441.9,3.2078]
[1730834526737,41.2481,2442.4,2441.9,3.2078]
[1730834527034,0.40947,2442.3,2442.0,0.40951]
[1730834527242,0.40949,2442.2,2441.9,3.61733]
[1730834527430,42.82472422,2442.4,2441.9,3.2078]
[1730834527630,0.40948,2442.3,2441.9,3.2078]
[1730834527834,43.23417422,2442.4,2441.9,3.2078]
[1730834528038,41.65755,2442.4,2442.1,0.40949]
[1730834528436,41.2481,2442.4,2441.9,3.2078]
[1730834528633,41.2481,2442.4,2442.1,0.4095]
[1730834528634,41.65756,2442.4,2442.1,0.4095]
[1730834528833,41.2481,2442.4,2441.9,3.2078]
[1730834529036,40.8,2442.4,2442.3,0.40947]
[1730834529337,5.19385422,2442.5,2442.2,0.40947]
[1730834529738,1.57662422,2442.5,2441.9,3.2078]
[1730834529941,42.37662422,2442.6,2441.9,4.23161]
[1730834530138,42.37662422,2442.6,2442.3,0.40946]
[1730834530139,42.78604422,2442.6,2442.3,0.40946]
[1730834531836,42.37662422,2442.6,2442.4,0.40944]
[1730834532137,42.78605422,2442.6,2441.9,4.23161]
[1730834532328,42.78604422,2442.6,2442.3,0.40946]
[1730834532527,1.98604422,2442.6,2442.3,0.40946]
[1730834532839,0.4095,2442.1,2441.9,3.2078]
[1730834533040,0.4095,2442.1,2441.8,0.01029374]
[1730834533041,40.8,2442.1,2441.8,0.01029374]
[1730834533231,41.2095,2442.1,2441.8,0.41983374]
[1730834533436,40.8,2442.1,2441.8,0.01029374]
[1730834533940,40.8,2442.1,2442.0,0.40952]
[1730834534133,40.8,2442.1,2441.8,0.01029374]
[1730834534341,7.303,2442.0,2441.3,3.4128]